bitfinex/quotes_BTCUSD_20230101
["timestamp","ask_amount","ask_price","bid_price","bid_amount"]
[1672532095536,0.56519168,16548.0,16547.0,0.71975613]
[1672532095782,0.1613745,16548.0,16547.0,0.01975613]
[1672532097053,1.07966829,16548.0,16547.0,0.01975613]
[1672532100444,1.30240534,16548.0,16547.0,0.01975613]
[1672532100704,1.07966829,16548.0,16547.0,0.01975613]
[1672532103736,0.1873745,16548.0,16547.0,0.01975613]
[1672532104214,1.07966829,16548.0,16547.0,0.01975613]
[1672532104726,1.07966829,16548.0,16547.0,0.57320769]
[1672532104989,0.1873745,16548.0,16547.0,0.57314091]
[1672532105240,0.1958745,16548.0,16547.0,0.57314091]
[1672532105724,0.1958745,16548.0,16547.0,0.57320769]
[1672532105979,0.0345,16548.0,16547.0,0.57320769]
[1672532106479,0.0345,16548.0,16547.0,1.27320769]
[1672532106999,0.0345,16548.0,16547.0,1.27314091]
[1672532108252,0.0345,16548.0,16547.0,1.27320769]
[1672532108497,0.0345,16548.0,16547.0,1.27314091]
[1672532110713,0.0345,16548.0,16547.0,1.51320093]
[1672532110967,0.026,16548.0,16547.0,1.89255891]
[1672532111204,0.63783719,16548.0,16547.0,1.89255891]
[1672532111704,0.026,16548.0,16547.0,1.89255891]
[1672532111961,0.63783296,16548.0,16547.0,1.89389478]
[1672532112205,0.63783296,16548.0,16547.0,2.01053703]
[1672532112956,0.026,16548.0,16547.0,2.01053703]
[1672532115411,0.026,16548.0,16547.0,1.38978316]
[1672532115667,0.026,16548.0,16547.0,1.39111903]
[1672532118016,0.026,16548.0,16547.0,1.39100816]
[1672532118505,0.026,16548.0,16547.0,1.38967229]
[1672532118790,0.026,16548.0,16547.0,1.38973909]
[1672532119040,0.026,16548.0,16547.0,1.56909472]
[1672532121348,0.026,16548.0,16547.0,2.00915709]
[1672532121602,0.026,16548.0,16547.0,1.38973909]
[1672532124149,0.026,16548.0,16547.0,1.38967229]
[1672532128286,0.026,16548.0,16547.0,1.38985502]
[1672532132309,0.026,16548.0,16547.0,1.38967229]
[1672532133871,0.026,16548.0,16547.0,1.56902124]
[1672532134120,0.63809018,16548.0,16547.0,1.65951366]
[1672532134388,0.63809018,16548.0,16547.0,2.62789048]
[1672532134632,0.026,16548.0,16547.0,2.04472435]
[1672532135139,0.63808807,16548.0,16547.0,1.45570551]
[1672532135638,0.63808807,16548.0,16547.0,0.83628751]
[1672532135889,0.63808807,16548.0,16547.0,1.36429789]
[1672532136145,0.63808807,16548.0,16547.0,1.81756825]
[1672532136401,0.63808807,16548.0,16547.0,2.43698625]
[1672532138909,0.63808807,16548.0,16547.0,1.9091586]
[1672532139160,0.63808807,16548.0,16547.0,1.90973327]
[1672532139419,0.63808807,16548.0,16547.0,1.90966229]
[1672532139671,0.63808807,16548.0,16547.0,2.31347947]
[1672532140173,0.63808807,16548.0,16547.0,2.48912773]
[1672532140431,0.63808807,16548.0,16547.0,2.7380405]
[1672532140684,0.63812812,16548.0,16547.0,2.33346592]
[1672532140935,0.63812812,16548.0,16547.0,1.71425939]
[1672532141182,0.026,16548.0,16547.0,2.11807657]
[1672532141439,0.63813485,16548.0,16547.0,1.71425939]
[1672532143503,0.63813485,16548.0,16547.0,1.48915795]
[1672532143743,0.63813485,16548.0,16547.0,1.78019222]
[1672532146008,0.63813485,16548.0,16547.0,1.37616357]
[1672532146262,0.63813485,16548.0,16547.0,1.37689366]
[1672532146786,0.026,16548.0,16547.0,1.37616357]
[1672532147357,0.026,16548.0,16547.0,1.37689366]
[1672532148837,0.026,16548.0,16547.0,1.33958184]
[1672532150140,0.026,16548.0,16547.0,0.83621653]
[1672532150639,0.10045,16548.0,16547.0,0.83621653]
[1672532150887,0.110495,16548.0,16547.0,1.37970505]
[1672532151144,0.10895,16548.0,16547.0,1.37970505]
[1672532151907,0.27482494,16548.0,16547.0,1.37970505]
[1672532154190,0.20037494,16548.0,16547.0,1.37970505]
[1672532154704,0.0345,16548.0,16547.0,1.37970505]
[1672532158495,0.10895,16548.0,16547.0,0.67970505]
[1672532159020,0.10895,16548.0,16547.0,0.13621653]
[1672532159521,0.27454783,16548.0,16547.0,0.13621653]
[1672532159782,0.38853426,16548.0,16547.0,0.13621653]
[1672532160582,0.27454783,16548.0,16547.0,0.13621653]
[1672532161096,0.20009783,16548.0,16547.0,0.13621653]
[1672532161350,0.20009783,16548.0,16547.0,0.83615019]
[1672532161877,0.0345,16548.0,16547.0,0.83615019]
[1672532162102,0.0345,16548.0,16547.0,1.45556819]
[1672532162626,0.0345,16548.0,16547.0,0.83615019]
[1672532165476,0.14263659,16548.0,16547.0,0.83615019]
[1672532166768,0.32191149,16548.0,16547.0,0.83615019]
[1672532167026,0.32191149,16548.0,16547.0,0.13615019]
[1672532167281,0.21370694,16548.0,16547.0,0.13615019]
[1672532167821,1.10600073,16548.0,16547.0,0.13615019]
[1672532168592,1.48071567,16548.0,16547.0,0.13615019]
[1672532168849,1.18842188,16548.0,16547.0,0.09485328]
[1672532169130,0.79726407,16548.0,16547.0,0.09485328]
[1672532170432,1.689501,16548.0,16547.0,0.09485328]
[1672532171418,1.989501,16548.0,16547.0,0.09485328]
[1672532171763,1.09726407,16548.0,16547.0,0.09485328]
[1672532172451,1.31453176,16548.0,16547.0,0.09485328]
[1672532172715,1.68923776,16548.0,16547.0,0.09485328]
[1672532173990,1.98923776,16548.0,16547.0,0.09485328]
[1672532174246,1.68923776,16548.0,16547.0,0.09485328]
[1672532175015,1.98923776,16548.0,16547.0,0.09485328]
[1672532176013,1.31453931,16548.0,16547.0,0.09485328]
[1672532176510,1.10569712,16548.0,16547.0,0.09485328]
[1672532177011,1.48019498,16548.0,16547.0,0.09485328]
[1672532178498,1.10569712,16548.0,16547.0,0.09485328]
[1672532179236,0.92642222,16548.0,16547.0,0.66990894]
[1672532179768,0.03443204,16548.0,16547.0,0.91003284]
[1672532180047,0.02593204,16548.0,16547.0,0.66997282]
[1672532180298,0.02593204,16548.0,16547.0,1.28939082]
[1672532180584,0.02593204,16548.0,16547.0,0.66997282]
[1672532181319,0.03443204,16548.0,16547.0,0.66990894]
[1672532181831,0.14576043,16548.0,16547.0,0.66990894]
[1672532182094,0.14576043,16548.0,16547.0,1.36990894]
[1672532182341,0.03443204,16548.0,16547.0,1.36990894]
[1672532182843,0.92642222,16548.0,16547.0,1.36990894]
[1672532183092,0.03443204,16548.0,16547.0,1.36990894]
[1672532183346,0.92642222,16548.0,16547.0,1.36990894]
[1672532183847,1.10026973,16548.0,16547.0,1.36990894]
[1672532184095,1.2102967,16548.0,16547.0,1.36990894]
[1672532185107,1.2102967,16548.0,16547.0,0.66990894]
[1672532186101,1.2102967,16548.0,16547.0,0.64990894]
[1672532189678,1.2102967,16548.0,16547.0,0.07485328]
[1672532189924,0.61830652,16548.0,16547.0,0.07485328]
[1672532190176,0.50827955,16548.0,16547.0,0.07485328]
[1672532190422,0.50827955,16548.0,16547.0,0.05202964]
[1672532190671,0.88256593,16548.0,16547.0,0.05202964]
[1672532192763,0.50827955,16548.0,16547.0,0.05202964]
[1672532193260,0.20827955,16548.0,16547.0,0.05202964]
[1672532193753,1.10095896,16548.0,16547.0,0.05202964]
[1672532194026,1.10095896,16548.0,16547.0,0.66180827]
[1672532194027,0.92711145,16548.0,16547.0,0.66180827]
[1672532194274,0.92711145,16548.0,16547.0,0.66174439]
[1672532195039,0.92711145,16548.0,16547.0,0.66180827]
[1672532195292,0.92711145,16548.0,16547.0,0.66174439]
[1672532196038,0.92711145,16548.0,16547.0,0.7102103]
[1672532196297,1.0198226,16548.0,16547.0,0.7102103]
[1672532197329,0.12714319,16548.0,16547.0,0.7102103]
[1672532201017,0.92758865,16548.0,16547.0,0.7102103]
[1672532202026,0.92758865,16548.0,16547.0,0.71027418]
[1672532202798,0.92758865,16548.0,16547.0,0.7102103]
[1672532203023,0.92758865,16548.0,16547.0,0.71027418]
[1672532204905,0.92758865,16548.0,16547.0,0.7102103]
[1672532205121,0.25549001,16548.0,16547.0,0.10049555]
[1672532205367,0.93180982,16548.0,16547.0,0.10049555]
[1672532205623,0.55766588,16548.0,16547.0,0.10049555]
[1672532206669,0.25766588,16548.0,16547.0,0.10049555]
[1672532206916,0.18321588,16548.0,16547.0,0.10049555]
[1672532208661,0.48321588,16548.0,16547.0,0.10049555]
[1672532208949,0.56897671,16548.0,16547.0,0.10049555]
[1672532209705,0.56897671,16548.0,16547.0,0.06951664]
[1672532211193,0.94179065,16548.0,16547.0,0.06951664]
[1672532213245,0.56897671,16548.0,16547.0,0.06951664]
[1672532213747,0.94178291,16548.0,16547.0,0.06951664]
[1672532214255,0.56897671,16548.0,16547.0,0.06951664]
[1672532214762,0.94174747,16548.0,16547.0,0.06951664]
[1672532215266,0.94173407,16548.0,16547.0,0.06951664]
[1672532215776,0.94173407,16548.0,16547.0,0.04841987]
[1672532217552,0.94171161,16548.0,16547.0,0.04841987]
[1672532218061,0.56897671,16548.0,16547.0,0.04841987]
[1672532218565,0.48321588,16548.0,16547.0,0.04841987]
[1672532221807,0.48321588,16548.0,16547.0,0.03377497]
[1672532227834,0.48321588,16548.0,16547.0,0.02359737]
[1672532228325,0.85587361,16548.0,16547.0,0.02359737]
[1672532228567,0.48321588,16548.0,16547.0,0.02359737]
[1672532231085,0.85596023,16548.0,16547.0,0.02359737]
[1672532231343,0.48321588,16548.0,16547.0,0.02359737]
[1672532231597,0.9416271,16548.0,16547.0,0.02359737]
[1672532233898,0.9416271,16548.0,16547.0,0.01650993]
[1672532235444,0.5688119,16548.0,16547.0,0.01650993]
[1672532235943,0.94152742,16548.0,16547.0,0.01650993]
[1672532237754,0.5688119,16548.0,16547.0,0.01650993]
[1672532238496,0.9413751,16548.0,16547.0,0.00650993]
[1672532239258,0.94134209,16548.0,16547.0,0.00650993]
[1672532239501,0.5688119,16548.0,16547.0,0.00650993]
[1672532239744,0.5688119,16548.0,16547.0,0.00456005]
[1672532241379,0.48321588,16548.0,16547.0,0.00456005]
[1672532243455,0.85571374,16548.0,16547.0,0.00456005]
[1672532243711,0.48321588,16548.0,16547.0,0.00456005]
[1672532245793,0.48321588,16548.0,16547.0,0.00319155]
[1672532247609,0.03443204,16548.0,16547.0,0.45127703]
[1672532250302,0.03443204,16548.0,16547.0,0.00319155]
[1672532250303,0.0841072,16548.0,16547.0,0.00319155]
[1672532250838,0.3841072,16548.0,16547.0,0.00319155]
[1672532251883,0.58072196,16548.0,16547.0,0.00319155]
[1672532253200,0.0841072,16548.0,16547.0,0.00319155]
[1672532253459,0.03443204,16548.0,16547.0,0.00319155]
[1672532253709,0.03443204,16548.0,16547.0,0.53495266]
[1672532259465,0.20246546,16548.0,16547.0,0.53495266]
[1672532259968,0.50246546,16548.0,16547.0,0.53495266]
[1672532260214,0.20246546,16548.0,16547.0,0.53495266]
[1672532260712,0.50246546,16548.0,16547.0,0.53495266]
[1672532260965,0.20246546,16548.0,16547.0,0.53495266]
[1672532261207,0.50246546,16548.0,16547.0,0.53495266]
[1672532262182,0.20246546,16548.0,16547.0,0.53495266]
[1672532262990,0.92783908,16548.0,16547.0,0.53495266]
[1672532267689,0.92783908,16548.0,16547.0,0.53488525]
[1672532271884,0.03443204,16548.0,16547.0,0.53488525]
[1672532274765,0.03431723,16548.0,16547.0,0.53488525]
[1672532275800,0.03431723,16548.0,16547.0,0.53512274]
[1672532277597,0.03431723,16548.0,16547.0,0.93723488]
[1672532280694,0.03431723,16548.0,16547.0,0.53512274]
[1672532284018,0.03431723,16548.0,16547.0,0.93723488]
[1672532286301,0.02581723,16548.0,16547.0,1.70119637]
[1672532286878,0.02581723,16548.0,16547.0,1.16943526]
[1672532287317,0.63783741,16548.0,16547.0,1.86943526]
[1672532287572,0.63783741,16548.0,16547.0,2.32991297]
[1672532288088,0.63783741,16548.0,16547.0,1.49007728]
[1672532288345,0.5698107,16548.0,16547.0,1.86943526]
[1672532288637,0.02581723,16548.0,16547.0,1.86943526]
[1672532288864,0.56981304,16548.0,16547.0,2.46943526]
[1672532289630,0.54399581,16548.0,16547.0,2.46943526]
[1672532289914,0.55399581,16548.0,16547.0,2.48643526]
[1672532290160,0.54399581,16548.0,16547.0,2.46943526]
[1672532290426,0.55799581,16548.0,16547.0,2.48743526]
[1672532293504,0.014,16548.0,16547.0,2.48743526]
[1672532294291,0.55799581,16548.0,16547.0,2.48743526]
[1672532295310,0.014,16548.0,16547.0,2.48743526]
[1672532295560,0.55799581,16548.0,16547.0,2.48743526]
[1672532296108,0.014,16548.0,16547.0,2.48743526]
[1672532296620,0.55799581,16548.0,16547.0,1.78743526]
[1672532297628,0.55799581,16548.0,16547.0,2.48743526]
[1672532298134,0.014,16548.0,16547.0,2.48743526]
[1672532298637,0.46657573,16548.0,16547.0,2.48743526]
[1672532299666,0.46657573,16548.0,16547.0,2.48733317]
[1672532301717,0.014,16548.0,16547.0,2.94551013]
[1672532301926,0.55799581,16548.0,16547.0,2.94551013]
[1672532302712,0.014,16548.0,16547.0,2.94551013]
[1672532303211,0.014,16548.0,16547.0,2.48733317]
[1672532303459,0.014,16548.0,16547.0,3.04198636]
[1672532306253,0.014,16548.0,16547.0,2.48733317]
[1672532307802,0.014,16548.0,16547.0,1.78733317]
[1672532308303,0.014,16548.0,16547.0,2.48733317]
[1672532310559,0.014,16548.0,16547.0,2.93554638]
[1672532310847,0.55799581,16548.0,16547.0,2.93554638]
[1672532311092,0.55799581,16548.0,16547.0,3.04161285]
[1672532311623,0.55799581,16548.0,16547.0,2.48733317]
[1672532311858,0.55799581,16548.0,16547.0,2.93063475]
[1672532313144,0.55799581,16548.0,16547.0,2.48733317]
[1672532314428,0.55799581,16548.0,16547.0,2.98733221]
[1672532314925,0.55799581,16548.0,16547.0,2.48733317]
[1672532315695,0.014,16548.0,16547.0,2.48733317]
[1672532317237,0.46670558,16548.0,16547.0,2.48733317]
[1672532317573,0.46675647,16548.0,16547.0,2.48733317]
[1672532317763,0.46675647,16548.0,16547.0,2.78733317]
[1672532317986,0.46675647,16548.0,16547.0,2.48733317]
[1672532318533,0.46675647,16548.0,16547.0,2.78733317]
[1672532319288,0.014,16548.0,16547.0,2.78733317]
[1672532319530,0.014,16548.0,16547.0,2.48733317]
[1672532320052,0.46684431,16548.0,16547.0,2.58232627]
[1672532320552,0.014,16548.0,16547.0,2.58232627]
[1672532321042,0.46684326,16548.0,16547.0,2.58224673]
[1672532321279,0.46684326,16548.0,16547.0,2.88224673]
[1672532321534,0.46684326,16548.0,16547.0,2.58224673]
[1672532321781,0.014,16548.0,16547.0,2.58224673]
[1672532322286,0.014,16548.0,16547.0,3.02370469]
[1672532322542,0.014,16548.0,16547.0,2.32370469]
[1672532322784,0.014,16548.0,16547.0,1.88224673]
[1672532323027,0.014,16548.0,16547.0,2.58224673]
[1672532323272,0.55799581,16548.0,16547.0,2.58224673]
[1672532323768,0.014,16548.0,16547.0,2.58224673]
[1672532324531,0.01308584,16548.0,16547.0,2.58224673]
[1672532324745,0.55708165,16548.0,16547.0,2.58224673]
[1672532325028,0.01308584,16548.0,16547.0,2.58224673]
[1672532325275,0.55708165,16548.0,16547.0,2.58224673]
[1672532328088,0.55708165,16548.0,16547.0,2.88224673]
[1672532328337,0.55708165,16548.0,16547.0,2.58224673]
[1672532333502,0.55708165,16548.0,16547.0,1.88224673]
[1672532333751,0.01308584,16548.0,16547.0,1.88224673]
[1672532334496,0.01308584,16548.0,16547.0,2.88224673]
[1672532336256,0.01308584,16548.0,16547.0,3.12230675]
[1672532336509,0.8290237,16548.0,16547.0,4.10456117]
[1672532336760,0.63465574,16548.0,16547.0,4.10456117]
[1672532337020,0.45335337,16548.0,16547.0,4.10456117]
[1672532337511,0.18134423,16548.0,16547.0,4.10456117]
[1672532338013,0.18134423,16548.0,16547.0,3.80239117]
[1672532338535,0.45334753,16549.0,16547.0,3.78439117]
[1672532338784,0.18133839,16549.0,16548.0,2.93586926]
[1672532339033,0.45334753,16549.0,16548.0,3.63586926]
[1672532339291,0.18133839,16549.0,16548.0,3.63586926]
[1672532340392,0.18133839,16549.0,16548.0,3.77686926]
[1672532341895,0.45334753,16549.0,16548.0,3.77686926]
[1672532342161,0.45334753,16549.0,16548.0,3.63586926]
[1672532342379,0.45434753,16549.0,16548.0,3.77486926]
[1672532344997,0.18233839,16549.0,16548.0,3.77486926]
[1672532346507,0.001,16549.0,16548.0,3.77486926]
[1672532348069,0.001,16549.0,16548.0,3.77466926]
[1672532351798,0.001,16549.0,16548.0,4.07679926]
[1672532361955,0.18133839,16552.0,16548.0,3.80144021]
[1672532362192,0.6346499,16553.0,16551.0,0.6]
[1672532362193,0.45334753,16553.0,16551.0,0.6]
[1672532362447,0.18133839,16553.0,16552.0,1.95743014]
[1672532362713,0.18133839,16553.0,16552.0,2.19749016]
[1672532362977,0.18133839,16553.0,16552.0,1.95743014]
[1672532363495,0.6346499,16555.0,16553.0,1.2359]
[1672532363750,0.6346499,16555.0,16554.0,2.08082346]
[1672532364003,0.27200914,16555.0,16554.0,2.08082346]
[1672532364564,0.99633772,16559.0,16554.0,2.78082346]
[1672532364565,1.087947,16557.0,16554.0,2.78082346]
[1672532364763,0.27200914,16557.0,16556.0,0.6359]
[1672532365075,0.6346499,16557.0,16556.0,2.55723346]
[1672532365275,0.6346499,16557.0,16556.0,1.219418]
[1672532365276,0.4532971,16557.0,16556.0,1.219418]
[1672532365526,0.4532971,16557.0,16556.0,1.919418]
[1672532365527,0.81482805,16557.0,16556.0,1.919418]
[1672532365794,0.4532971,16557.0,16556.0,1.919418]
[1672532366033,0.4532971,16557.0,16556.0,2.60489205]
[1672532366532,0.8147155,16557.0,16556.0,2.70189205]
[1672532366783,0.81471016,16557.0,16556.0,2.70189205]
[1672532367045,0.81471234,16557.0,16556.0,2.70189205]
[1672532367289,0.4532971,16557.0,16556.0,2.70189205]
[1672532367553,0.81476766,16557.0,16556.0,2.70189205]
[1672532368075,0.4532971,16557.0,16556.0,2.70189205]
[1672532368321,0.4517454,16557.0,16556.0,2.70189205]
[1672532368831,0.4517454,16557.0,16556.0,3.10380751]
[1672532369064,0.4517454,16557.0,16556.0,2.70189205]
[1672532371294,0.54399581,16558.0,16556.0,2.70189205]
[1672532371543,0.45184092,16557.0,16556.0,2.48438951]
[1672532371772,0.45184092,16557.0,16556.0,2.70189205]
[1672532372520,0.81329258,16557.0,16556.0,2.60489205]
[1672532372789,0.81329258,16557.0,16556.0,2.62089205]
[1672532373534,0.81329258,16557.0,16556.0,2.70189205]
[1672532374756,0.81329258,16557.0,16556.0,2.00189205]
[1672532375266,0.45184092,16557.0,16556.0,2.70189205]
[1672532379012,0.81349347,16557.0,16556.0,2.70189205]
[1672532381282,0.45184092,16557.0,16556.0,2.70189205]
[1672532383033,0.81339972,16557.0,16556.0,2.70189205]
[1672532383281,0.45184092,16557.0,16556.0,2.70189205]
[1672532388240,0.54399581,16558.0,16556.0,2.70189205]
[1672532388485,0.54399581,16558.0,16557.0,0.88960721]
[1672532388734,0.54399581,16558.0,16557.0,1.58960721]
[1672532390172,0.54399581,16558.0,16557.0,2.13735012]
[1672532391949,0.54399581,16558.0,16557.0,2.12135012]
[1672532392201,0.54499581,16558.0,16557.0,2.12735012]
[1672532392444,0.001,16558.0,16557.0,2.12135012]
[1672532392696,0.54407226,16558.0,16557.0,2.13735012]
[1672532394474,0.001,16558.0,16557.0,2.13735012]
[1672532394950,0.54414932,16558.0,16557.0,2.13735012]
[1672532396124,0.54314932,16558.0,16557.0,2.12135012]
[1672532396375,0.54414932,16558.0,16557.0,2.12735012]
[1672532396632,0.54314932,16558.0,16557.0,2.12135012]
[1672532396891,0.75839276,16559.0,16557.0,2.13735012]
[1672532397144,0.54326282,16558.0,16557.0,1.24774291]
[1672532398177,0.54326282,16558.0,16557.0,1.86716091]
[1672532398435,0.75839276,16559.0,16557.0,1.86716091]
[1672532398685,0.75839276,16559.0,16558.0,0.619418]
[1672532398932,0.75839276,16559.0,16558.0,0.7]
[1672532400013,0.75939276,16559.0,16558.0,0.7]
[1672532400491,0.14737258,16559.0,16558.0,0.7]
[1672532400739,0.001,16559.0,16558.0,1.319418]
[1672532401035,0.001,16559.0,16558.0,1.48278384]
[1672532402575,0.001,16559.0,16558.0,0.86336584]
[1672532403066,0.001,16559.0,16558.0,0.6]
[1672532404083,0.001,16559.0,16558.0,1.3]
[1672532406387,0.001,16559.0,16558.0,1.30023733]
[1672532406649,0.001,16559.0,16558.0,1.70215279]
[1672532406895,0.001,16559.0,16558.0,2.32157079]
[1672532407173,0.001,16559.0,16558.0,3.1780535]
[1672532407409,0.001,16559.0,16558.0,2.77613804]
[1672532409245,0.61321531,16559.0,16558.0,2.77613804]
[1672532409493,0.001,16559.0,16558.0,2.77613804]
[1672532409744,0.61313121,16559.0,16558.0,2.77613804]
[1672532415572,0.61303809,16559.0,16558.0,2.77613804]
[1672532424743,0.001,16559.0,16558.0,2.77613804]
[1672532425265,0.001,16559.0,16558.0,2.15672004]
[1672532425507,0.61272869,16559.0,16558.0,2.77613804]
[1672532425752,0.61272869,16559.0,16558.0,2.15672004]
[1672532425994,0.61272869,16559.0,16558.0,2.77613804]
[1672532434016,0.61272869,16559.0,16558.0,2.07613804]
[1672532434996,0.61272869,16559.0,16558.0,2.77613804]
[1672532439716,0.001,16559.0,16558.0,2.77613804]
[1672532440214,0.61286192,16559.0,16558.0,2.77613804]
[1672532440467,0.61286192,16559.0,16558.0,2.15672004]
[1672532440968,0.61286192,16559.0,16558.0,1.45672004]
[1672532441970,0.61286192,16559.0,16558.0,2.15672004]
[1672532446582,0.61286192,16559.0,16558.0,2.77613804]
[1672532447074,0.61286192,16559.0,16558.0,3.1780535]
[1672532447568,0.61286192,16559.0,16558.0,2.77613804]
[1672532448871,0.001,16559.0,16558.0,3.1780535]
[1672532449353,0.001,16559.0,16558.0,2.77613804]
[1672532451861,0.54467901,16559.0,16558.0,2.77613804]
[1672532452113,0.001,16559.0,16558.0,2.77613804]
[1672532455668,0.54452605,16559.0,16558.0,3.1780535]
[1672532456948,0.54452605,16559.0,16558.0,2.77613804]
[1672532457453,0.54452605,16559.0,16558.0,2.07613804]
[1672532457714,0.54452605,16559.0,16558.0,1.8586355]
[1672532457980,0.54452605,16559.0,16558.0,2.07613804]
[1672532458229,0.54452605,16559.0,16558.0,2.4780535]
[1672532458502,0.54452605,16559.0,16558.0,2.15672004]
[1672532458747,0.001,16559.0,16558.0,2.15672004]
[1672532458993,0.001,16559.0,16558.0,2.77613804]
[1672532459487,0.001,16559.0,16558.0,2.15672004]
[1672532462982,0.54447676,16559.0,16558.0,2.77613804]
[1672532463232,0.54447676,16559.0,16558.0,2.15672004]
[1672532464491,0.54447676,16559.0,16558.0,1.45672004]
[1672532464990,0.5445077,16559.0,16558.0,2.15672004]
[1672532465240,0.001,16559.0,16558.0,2.15672004]
[1672532465487,0.001,16559.0,16558.0,2.77613804]
[1672532465942,0.60786192,16560.0,16559.0,1.12693992]
[1672532466212,0.60786192,16560.0,16559.0,2.68885607]
[1672532467734,0.60786192,16560.0,16559.0,3.09077153]
[1672532469199,0.60786192,16560.0,16559.0,3.09677153]
[1672532470943,0.60786192,16560.0,16559.0,2.39677153]
[1672532471721,0.60786192,16561.0,16559.0,2.39677153]
[1672532471987,0.60786192,16561.0,16560.0,0.743008]
[1672532472235,0.61155878,16561.0,16560.0,0.743008]
[1672532472511,0.61155878,16561.0,16560.0,0.12359]
[1672532473008,0.61155878,16561.0,16560.0,0.82359]
[1672532473503,0.61155878,16561.0,16560.0,0.83259]
[1672532473760,0.61155878,16561.0,16560.0,1.38187395]
[1672532475053,0.61155878,16561.0,16560.0,1.77885496]
[1672532475545,0.61155878,16561.0,16560.0,1.77892605]
[1672532476062,0.61155878,16561.0,16560.0,1.38187395]
[1672532476820,0.54208319,16563.0,16560.0,1.38187395]
[1672532477080,1.43549023,16563.0,16561.0,0.1381874]
[1672532477395,1.43549023,16563.0,16561.0,0.8381874]
[1672532477396,1.03357477,16563.0,16561.0,0.8381874]
[1672532478336,0.14016773,16563.0,16561.0,0.8381874]
[1672532478587,1.03357477,16563.0,16561.0,0.8481874]
[1672532479088,0.14016773,16563.0,16561.0,0.8481874]
[1672532480858,0.14016773,16563.0,16562.0,0.08481874]
[1672532481106,0.14016773,16563.0,16562.0,0.7]
[1672532481378,1.06400337,16563.0,16562.0,0.7]
[1672532482121,1.06400337,16563.0,16562.0,0.71]
[1672532482651,0.17059633,16563.0,16562.0,0.71007251]
[1672532486631,0.17059633,16563.0,16562.0,0.71]
[1672532487373,0.17059633,16563.0,16562.0,0.83737587]
[1672532487894,0.17059633,16563.0,16562.0,0.70989178]
[1672532490364,0.17059633,16563.0,16562.0,0.70996429]
[1672532493117,0.17059633,16563.0,16562.0,0.00996429]
[1672532493823,0.89340704,16564.0,16562.0,1.10729404]
[1672532494098,1.03324196,16564.0,16562.0,0.70996429]
[1672532494334,1.03324196,16564.0,16562.0,1.47833459]
[1672532494576,1.03324196,16564.0,16562.0,1.46844281]
[1672532495329,1.03324196,16564.0,16562.0,1.47944281]
[1672532500037,1.03324196,16564.0,16562.0,0.77944281]
[1672532501050,1.03324196,16564.0,16562.0,1.47944281]
[1672532501297,2.6122,16565.0,16563.0,0.75962644]
[1672532501298,3.50560704,16565.0,16563.0,0.75962644]
[1672532501555,1.06979372,16565.0,16563.0,1.15685853]
[1672532501816,1.06979372,16565.0,16563.0,1.15675582]
[1672532502074,1.06979372,16565.0,16563.0,1.45962644]
[1672532502322,1.06979372,16565.0,16563.0,1.47062644]
[1672532504578,1.06979372,16565.0,16563.0,1.32268216]
[1672532504820,0.17638156,16564.0,16563.0,0.711]
[1672532505068,1.0697886,16564.0,16563.0,0.711]
[1672532505321,1.0697886,16564.0,16563.0,0.71107251]
[1672532505576,1.0697886,16564.0,16563.0,0.70007251]
[1672532505823,1.0697886,16564.0,16563.0,0.87811895]
[1672532506062,0.17638156,16564.0,16563.0,0.87811895]
[1672532506548,1.0697886,16564.0,16563.0,0.87811895]
[1672532506788,0.17638156,16564.0,16563.0,0.87811895]
[1672532507785,0.17638156,16564.0,16563.0,0.87805746]
[1672532508030,1.0697886,16564.0,16563.0,0.87805746]
[1672532508793,0.17638156,16564.0,16563.0,0.87805746]
[1672532511026,0.17638156,16564.0,16563.0,0.71101102]
[1672532511273,0.17638156,16564.0,16563.0,1.10785772]
[1672532511809,0.17638156,16564.0,16563.0,0.71101102]
[1672532513051,0.17638156,16564.0,16563.0,0.01107251]
[1672532514038,0.17638156,16564.0,16563.0,0.71107251]
[1672532515780,1.0697886,16564.0,16563.0,0.71107251]
[1672532516527,0.17638156,16564.0,16563.0,0.87920303]
[1672532518550,0.17638156,16564.0,16563.0,0.71107251]
[1672532518801,0.17638156,16564.0,16563.0,0.70007251]
[1672532519049,0.17638156,16564.0,16563.0,0.71007251]
[1672532519533,0.17638156,16564.0,16563.0,0.70007251]
[1672532519795,0.17638156,16564.0,16563.0,0.70607251]
[1672532520051,0.17638156,16564.0,16563.0,0.00607251]
[1672532520303,0.17638156,16564.0,16563.0,0.10370303]
[1672532520545,0.17638156,16564.0,16563.0,0.00607251]
[1672532521040,0.17638156,16564.0,16563.0,0.70607251]
[1672532522049,0.17638156,16564.0,16563.0,0.706]
[1672532522812,1.0697886,16564.0,16563.0,0.706]
[1672532524053,0.89340704,16565.0,16563.0,1.10292279]
[1672532524305,0.89340704,16565.0,16563.0,1.21829409]
[1672532524798,1.04783965,16565.0,16563.0,1.21829409]
[1672532525052,1.04783965,16565.0,16563.0,0.8153713]
[1672532525297,1.04783965,16565.0,16563.0,0.8243713]
[1672532525540,1.04783965,16565.0,16564.0,7.25e-05]
[1672532525784,1.04783965,16565.0,16564.0,0.7]
[1672532526761,1.04783965,16565.0,16564.0,0.7090725]
[1672532527274,1.04783965,16565.0,16564.0,0.0090725]
[1672532528005,1.04783965,16565.0,16564.0,0.7090725]
[1672532528736,0.89340704,16565.0,16564.0,0.7090725]
[1672532529028,0.89340704,16565.0,16564.0,1.23567027]
[1672532529285,0.89340704,16565.0,16564.0,1.4104772]
[1672532530052,1.03868293,16566.0,16564.0,1.4104772]
[1672532530294,1.03868293,16566.0,16564.0,1.80768589]
[1672532530533,1.03868293,16566.0,16564.0,1.41040037]
[1672532531033,1.03868293,16566.0,16564.0,1.4014047]
[1672532531272,0.89340704,16565.0,16564.0,1.4014047]
[1672532531514,1.03868293,16566.0,16564.0,1.4114047]
[1672532532040,1.03868293,16566.0,16564.0,1.4014047]
[1672532532539,1.03868293,16566.0,16564.0,1.4104047]
[1672532532794,1.03868293,16566.0,16564.0,1.4014047]
[1672532533037,0.89340704,16565.0,16564.0,1.4114047]
[1672532533286,1.03868293,16566.0,16564.0,1.4114047]
[1672532533542,1.03868293,16566.0,16564.0,1.23659777]
[1672532535563,0.89340704,16565.0,16564.0,1.23659777]
[1672532536868,0.89340704,16565.0,16564.0,1.22659777]
[1672532537101,0.89340704,16565.0,16564.0,1.23559777]
[1672532538892,0.27944001,16565.0,16564.0,0.709]
[1672532539688,0.27936751,16565.0,16564.0,0.709]
[1672532539903,1.06779808,16565.0,16564.0,0.709]
[1672532544771,1.06779808,16565.0,16564.0,0.70871]
[1672532545272,1.06787058,16565.0,16564.0,0.70871]
[1672532546044,1.06779808,16565.0,16564.0,0.70871]
[1672532548011,1.06779808,16565.0,16564.0,0.009]
[1672532548260,1.06787058,16565.0,16564.0,0.009]